[Event "Late-Titled-Tuesday-Blitz-October-03-2023"]
[Site "Chess.com"]
[Date "2023.10.03"]
[Round "11"]
[White "YellowJacek"]
[Black "APOKALIPSA13"]
[Result "1-0"]
[WhiteElo "2305"]
[BlackElo "2163"]
[TimeControl "180+1"]
[EndTime "16:01:32 PDT"]
[Termination "YellowJacek won by resignation"]

1. Nf3 {[%clk 0:02:57.2]} 1... e6 {[%clk 0:03:00.9]} 2. g3 {[%clk 0:02:56.4]}
2... b6 {[%clk 0:03:01.8]} 3. Bg2 {[%clk 0:02:57.2]} 3... Bb7 {[%clk 0:03:02.7]}
4. O-O {[%clk 0:02:57.1]} 4... g5 {[%clk 0:03:02.9]} 5. d3 {[%clk 0:02:52.3]}
5... g4 {[%clk 0:03:01.9]} 6. Nfd2 {[%clk 0:02:44.4]} 6... Bxg2 {[%clk
0:03:02.8]} 7. Kxg2 {[%clk 0:02:44.6]} 7... f5 {[%clk 0:02:58.6]} 8. e4 {[%clk
0:02:40.4]} 8... h5 {[%clk 0:02:55.2]} 9. exf5 {[%clk 0:02:39.5]} 9... exf5
{[%clk 0:02:56.1]} 10. Re1+ {[%clk 0:02:38]} 10... Be7 {[%clk 0:02:53.2]} 11.
Nc4 {[%clk 0:02:32.1]} 11... Qc8 {[%clk 0:02:50.7]} 12. Bg5 {[%clk 0:02:28.9]}
12... Qb7+ {[%clk 0:02:48.9]} 13. Kg1 {[%clk 0:02:27.6]} 13... Nc6 {[%clk
0:02:46.3]} 14. Ne5 {[%clk 0:02:17.9]} 14... Nxe5 {[%clk 0:02:26.7]} 15. Rxe5
{[%clk 0:02:18.8]} 15... h4 {[%clk 0:02:18.7]} 16. Qe2 {[%clk 0:02:14.9]} 16...
O-O-O {[%clk 0:02:13.6]} 17. Bxe7 {[%clk 0:02:07.2]} 17... hxg3 {[%clk
0:02:07.4]} 18. fxg3 {[%clk 0:02:06.2]} 18... Nxe7 {[%clk 0:02:05.7]} 19. Rxe7
{[%clk 0:02:06.7]} 19... f4 {[%clk 0:01:55.8]} 20. Qe4 {[%clk 0:01:55]} 20...
fxg3 {[%clk 0:01:24.4]} 21. Qxb7+ {[%clk 0:01:53.4]} 21... Kxb7 {[%clk
0:01:24.3]} 22. Re2 {[%clk 0:01:37.2]} 22... gxh2+ {[%clk 0:01:04.4]} 23. Rxh2
{[%clk 0:01:38.1]} 23... Rhe8 {[%clk 0:00:51.3]} 24. Nc3 {[%clk 0:01:37.3]}
24... Re5 {[%clk 0:00:46.9]} 25. Rg2 {[%clk 0:01:29.4]} 25... Rg8 {[%clk
0:00:45.7]} 26. Rf1 {[%clk 0:01:28]} 26... d5 {[%clk 0:00:43]} 27. d4 {[%clk
0:01:24.9]} 27... Reg5 {[%clk 0:00:40.2]} 28. Rf4 {[%clk 0:01:19.1]} 28... c5
{[%clk 0:00:36.5]} 29. Rd2 {[%clk 0:01:05.4]} 29... Rd8 {[%clk 0:00:20]} 30. Kg2
{[%clk 0:01:01.2]} 30... Rd6 {[%clk 0:00:15.8]} 31. Kg3 {[%clk 0:01:00.5]} 31...
Kc6 {[%clk 0:00:14.9]} 32. Rxg4 {[%clk 0:01:00.6]} 32... Rxg4+ {[%clk
0:00:14.1]} 33. Kxg4 {[%clk 0:01:01]} 33... cxd4 {[%clk 0:00:14.5]} 34. Rxd4
{[%clk 0:01:00.5]} 34... Kc5 {[%clk 0:00:15.2]} 35. Rd2 {[%clk 0:00:50.1]} 35...
b5 {[%clk 0:00:15.5]} 36. Kf5 {[%clk 0:00:47.4]} 36... a5 {[%clk 0:00:15.4]} 37.
Ke5 {[%clk 0:00:47]} 37... b4 {[%clk 0:00:11.8]} 38. Ne4+ {[%clk 0:00:47]} 38...
dxe4 {[%clk 0:00:09.3]} 39. Rxd6 {[%clk 0:00:46.9]} 39... e3 {[%clk 0:00:08.4]}
40. Rd1 {[%clk 0:00:47.4]} 40... a4 {[%clk 0:00:07.2]} 41. Re1 {[%clk
0:00:47.5]} 41... b3 {[%clk 0:00:07.7]} 42. cxb3 {[%clk 0:00:47.2]} 42... axb3
{[%clk 0:00:08.6]} 43. axb3 {[%clk 0:00:47.7]} 43... Kb4 {[%clk 0:00:09.2]} 44.
Ke4 {[%clk 0:00:48.2]} 44... Ka5 {[%clk 0:00:09.8]} 45. Kxe3 {[%clk 0:00:48.7]}
45... Kb4 {[%clk 0:00:10.5]} 46. Kd4 {[%clk 0:00:49.2]} 46... Ka5 {[%clk
0:00:11.4]} 47. Kc4 {[%clk 0:00:49.6]} 47... Kb6 {[%clk 0:00:11.6]} 48. Re6+
{[%clk 0:00:49.7]} 48... Kc7 {[%clk 0:00:11.3]} 49. Kc5 {[%clk 0:00:49.1]} 49...
Kd7 {[%clk 0:00:12.2]} 50. Re5 {[%clk 0:00:49.6]} 1-0

[Event "Late-Titled-Tuesday-Blitz-October-03-2023"]
[Site "Chess.com"]
[Date "2023.10.03"]
[Round "11"]
[White "Defenstrator"]
[Black "ferrufino64"]
[Result "1-0"]
[WhiteElo "2407"]
[BlackElo "2216"]
[TimeControl "180+1"]
[EndTime "16:01:36 PDT"]
[Termination "Defenstrator won by checkmate"]

1. Nh3 {[%clk 0:03:00.5]} 1... e5 {[%clk 0:02:54]} 2. g3 {[%clk 0:03:00.1]} 2...
d5 {[%clk 0:02:53]} 3. f4 {[%clk 0:03:00.5]} 3... e4 {[%clk 0:02:51.1]} 4. d3
{[%clk 0:02:58.7]} 4... exd3 {[%clk 0:02:50.3]} 5. cxd3 {[%clk 0:02:54.1]} 5...
Nf6 {[%clk 0:02:49.5]} 6. Nf2 {[%clk 0:02:53.3]} 6... Bc5 {[%clk 0:02:46.7]} 7.
Bg2 {[%clk 0:02:48]} 7... O-O {[%clk 0:02:43.1]} 8. O-O {[%clk 0:02:48.3]} 8...
Re8 {[%clk 0:02:42.9]} 9. Kh1 {[%clk 0:02:35.5]} 9... Bf5 {[%clk 0:02:39.9]} 10.
Nc3 {[%clk 0:02:33.5]} 10... c6 {[%clk 0:02:39.7]} 11. e4 {[%clk 0:02:32.7]}
11... Bxf2 {[%clk 0:02:33]} 12. exf5 {[%clk 0:02:25.5]} 12... Bb6 {[%clk
0:02:28.5]} 13. g4 {[%clk 0:02:26]} 13... Nbd7 {[%clk 0:02:06.4]} 14. g5 {[%clk
0:02:24.8]} 14... d4 {[%clk 0:02:06.9]} 15. Ne4 {[%clk 0:02:11.2]} 15... Nxe4
{[%clk 0:02:03]} 16. dxe4 {[%clk 0:02:05.3]} 16... Nf8 {[%clk 0:01:55.2]} 17. e5
{[%clk 0:02:02.2]} 17... Qd7 {[%clk 0:01:50.6]} 18. Be4 {[%clk 0:01:55.9]} 18...
Rad8 {[%clk 0:01:48.6]} 19. Qh5 {[%clk 0:01:41.5]} 19... f6 {[%clk 0:01:07.4]}
20. gxf6 {[%clk 0:01:05.5]} 20... gxf6 {[%clk 0:01:05.4]} 21. e6 {[%clk
0:01:00.3]} 21... Qe7 {[%clk 0:01:00.7]} 22. Rg1+ {[%clk 0:00:54.7]} 22... Kh8
{[%clk 0:01:01]} 23. Qf7 {[%clk 0:00:51.3]} 23... Nxe6 {[%clk 0:00:50]} 24. fxe6
{[%clk 0:00:47.8]} 24... Qxf7 {[%clk 0:00:49.8]} 25. exf7 {[%clk 0:00:46.9]}
25... Rxe4 {[%clk 0:00:50.5]} 26. f5 {[%clk 0:00:41.3]} 26... Rf8 {[%clk
0:00:49.8]} 27. Bh6 {[%clk 0:00:36.6]} 27... Rxf7 {[%clk 0:00:50]} 28. Rae1
{[%clk 0:00:36.6]} 28... Ree7 {[%clk 0:00:26.1]} 29. Rd1 {[%clk 0:00:15.8]}
29... c5 {[%clk 0:00:25.9]} 30. Rg4 {[%clk 0:00:14.7]} 30... Bc7 {[%clk
0:00:19.3]} 31. Rdg1 {[%clk 0:00:14.9]} 31... Re8 {[%clk 0:00:19.8]} 32. Bg7+
{[%clk 0:00:09.5]} 32... Kg8 {[%clk 0:00:20.1]} 33. Bxf6+ {[%clk 0:00:08.2]}
33... Kf8 {[%clk 0:00:20.7]} 34. Rg8# {[%clk 0:00:08.7]} 1-0

[Event "Late-Titled-Tuesday-Blitz-October-03-2023"]
[Site "Chess.com"]
[Date "2023.10.03"]
[Round "11"]
[White "ural58"]
[Black "canary2016"]
[Result "1-0"]
[WhiteElo "2505"]
[BlackElo "2174"]
[TimeControl "180+1"]
[EndTime "16:01:39 PDT"]
[Termination "ural58 won on time"]

1. e4 {[%clk 0:03:00.9]} 1... c5 {[%clk 0:02:57]} 2. b3 {[%clk 0:03:00.5]} 2...
d5 {[%clk 0:02:54.8]} 3. exd5 {[%clk 0:02:55.9]} 3... Qxd5 {[%clk 0:02:52.8]} 4.
Nc3 {[%clk 0:02:53.2]} 4... Qd8 {[%clk 0:02:52.4]} 5. Bb2 {[%clk 0:02:48.4]}
5... Nf6 {[%clk 0:02:52.3]} 6. Nf3 {[%clk 0:02:31.1]} 6... Bg4 {[%clk
0:02:51.5]} 7. h3 {[%clk 0:02:18.5]} 7... Bh5 {[%clk 0:02:48.4]} 8. Bb5+ {[%clk
0:02:11.1]} 8... Nbd7 {[%clk 0:02:46.9]} 9. Qe2 {[%clk 0:02:09.6]} 9... e6
{[%clk 0:02:38.7]} 10. O-O-O {[%clk 0:01:54]} 10... Be7 {[%clk 0:02:34.4]} 11.
g4 {[%clk 0:01:48.8]} 11... Bg6 {[%clk 0:02:33.5]} 12. Ne5 {[%clk 0:01:46.3]}
12... O-O {[%clk 0:02:30.5]} 13. Nxg6 {[%clk 0:01:35.7]} 13... hxg6 {[%clk
0:02:29.3]} 14. f4 {[%clk 0:01:35.2]} 14... a6 {[%clk 0:02:27.9]} 15. Bd3 {[%clk
0:01:28.6]} 15... b5 {[%clk 0:02:27.1]} 16. h4 {[%clk 0:01:22]} 16... Nb6 {[%clk
0:02:24.7]} 17. h5 {[%clk 0:01:16]} 17... Rc8 {[%clk 0:02:22.9]} 18. hxg6 {[%clk
0:01:14.1]} 18... fxg6 {[%clk 0:02:21.3]} 19. Bxg6 {[%clk 0:01:11.1]} 19... Nfd5
{[%clk 0:01:02]} 20. Qh2 {[%clk 0:01:06.1]} 20... Bh4 {[%clk 0:00:56.3]} 21.
Qxh4 {[%clk 0:00:59.3]} 21... Qxh4 {[%clk 0:00:55.1]} 22. Rxh4 {[%clk
0:00:59.8]} 22... Nxf4 {[%clk 0:00:54.8]} 23. Bh7+ {[%clk 0:00:53.8]} 23... Kf7
{[%clk 0:00:53.6]} 24. Ne4 {[%clk 0:00:50.3]} 24... Ke7 {[%clk 0:00:40.6]} 25.
Bxg7 {[%clk 0:00:43.2]} 25... Rf7 {[%clk 0:00:39.8]} 26. Be5 {[%clk 0:00:42.6]}
26... Ne2+ {[%clk 0:00:35.6]} 27. Kb1 {[%clk 0:00:41.6]} 27... Nd7 {[%clk
0:00:30.6]} 28. Bb2 {[%clk 0:00:36.3]} 28... e5 {[%clk 0:00:24]} 29. Bf5 {[%clk
0:00:35.3]} 29... Rg8 {[%clk 0:00:16.1]} 30. Bxd7 {[%clk 0:00:30.7]} 30... Kxd7
{[%clk 0:00:16]} 31. Bxe5 {[%clk 0:00:31.3]} 31... Re8 {[%clk 0:00:12.9]} 32.
Nxc5+ {[%clk 0:00:26.3]} 32... Kc6 {[%clk 0:00:12.8]} 33. Nd3 {[%clk 0:00:27.2]}
33... Rd7 {[%clk 0:00:03.9]} 34. Re1 {[%clk 0:00:19.3]} 1-0

[Event "Late-Titled-Tuesday-Blitz-October-03-2023"]
[Site "Chess.com"]
[Date "2023.10.03"]
[Round "11"]
[White "TanitoluwaAps116"]
[Black "Polish_fighter3000"]
[Result "0-1"]
[WhiteElo "2668"]
[BlackElo "3050"]
[TimeControl "180+1"]
[EndTime "16:01:51 PDT"]
[Termination "Polish_fighter3000 won by resignation"]

1. e4 {[%clk 0:02:38.3]} 1... d5 {[%clk 0:03:00.9]} 2. exd5 {[%clk 0:02:38.1]}
2... c6 {[%clk 0:03:01.5]} 3. dxc6 {[%clk 0:02:35.2]} 3... Nxc6 {[%clk
0:03:02.4]} 4. Bb5 {[%clk 0:02:31]} 4... e5 {[%clk 0:02:53.9]} 5. Ne2 {[%clk
0:02:13.2]} 5... Nf6 {[%clk 0:02:43.6]} 6. O-O {[%clk 0:02:12]} 6... Bc5 {[%clk
0:02:41.2]} 7. c3 {[%clk 0:01:56.7]} 7... O-O {[%clk 0:02:38.8]} 8. d4 {[%clk
0:01:53.5]} 8... exd4 {[%clk 0:02:39.7]} 9. Bxc6 {[%clk 0:01:52.8]} 9... bxc6
{[%clk 0:02:39.6]} 10. cxd4 {[%clk 0:01:52.1]} 10... Bb6 {[%clk 0:02:31.3]} 11.
Nbc3 {[%clk 0:01:51.9]} 11... Re8 {[%clk 0:02:29.3]} 12. Bg5 {[%clk 0:01:49.9]}
12... h6 {[%clk 0:02:29.1]} 13. Bh4 {[%clk 0:01:48.3]} 13... g5 {[%clk
0:02:26.4]} 14. Bg3 {[%clk 0:01:43.6]} 14... Nh5 {[%clk 0:02:27.3]} 15. Be5
{[%clk 0:01:34.4]} 15... f6 {[%clk 0:02:22.5]} 16. Bg3 {[%clk 0:01:26.5]} 16...
Bg4 {[%clk 0:02:15.9]} 17. Qd3 {[%clk 0:01:19.4]} 17... Kg7 {[%clk 0:02:14.2]}
18. Rfe1 {[%clk 0:01:14.9]} 18... Qd7 {[%clk 0:02:12.7]} 19. f3 {[%clk 0:01:07]}
19... Bf5 {[%clk 0:02:06]} 20. Qd2 {[%clk 0:01:01.3]} 20... Nxg3 {[%clk
0:02:06.9]} 21. hxg3 {[%clk 0:00:46.3]} 21... Rad8 {[%clk 0:02:05.6]} 22. Rad1
{[%clk 0:00:43.6]} 22... c5 {[%clk 0:02:00.6]} 23. d5 {[%clk 0:00:33.7]} 23...
c4+ {[%clk 0:01:39.3]} 24. Nd4 {[%clk 0:00:32.3]} 24... Bd3 {[%clk 0:01:39.7]}
25. Qf2 {[%clk 0:00:26.8]} 25... Re5 {[%clk 0:01:14.1]} 26. Rxe5 {[%clk
0:00:08.4]} 26... fxe5 {[%clk 0:01:15]} 27. Ne6+ {[%clk 0:00:08.6]} 27... Kg8
{[%clk 0:01:14.8]} 28. Nc5 {[%clk 0:00:08.7]} 28... Qc7 {[%clk 0:01:13.1]} 29.
N3a4 {[%clk 0:00:07.3]} 29... Rxd5 {[%clk 0:01:13.4]} 30. Nxb6 {[%clk
0:00:07.4]} 30... axb6 {[%clk 0:01:12.5]} 31. Nxd3 {[%clk 0:00:07.3]} 31... cxd3
{[%clk 0:01:13.4]} 32. Qe3 {[%clk 0:00:07.3]} 32... Qd6 {[%clk 0:00:52.2]} 33.
Rd2 {[%clk 0:00:06.2]} 33... Rd4 {[%clk 0:00:51.7]} 34. Kf2 {[%clk 0:00:04.6]}
34... b5 {[%clk 0:00:48.8]} 35. Qe1 {[%clk 0:00:03.1]} 35... Kg7 {[%clk
0:00:45.9]} 36. Qe3 {[%clk 0:00:03]} 36... Kg6 {[%clk 0:00:44.3]} 37. Kf1 {[%clk
0:00:03]} 37... h5 {[%clk 0:00:44.3]} 38. Qe1 {[%clk 0:00:02.9]} 38... Kf5
{[%clk 0:00:32.3]} 39. Qe3 {[%clk 0:00:02.3]} 39... Qd5 {[%clk 0:00:32.6]} 40.
Rd1 {[%clk 0:00:02.7]} 40... Qxa2 {[%clk 0:00:29.9]} 41. Rd2 {[%clk 0:00:02.6]}
41... Qd5 {[%clk 0:00:28.9]} 42. Qg1 {[%clk 0:00:03]} 42... b4 {[%clk
0:00:28.1]} 43. Qh1 {[%clk 0:00:03.3]} 43... Qc4 {[%clk 0:00:25.4]} 44. Qxh5
{[%clk 0:00:03.1]} 44... Qc1+ {[%clk 0:00:24.7]} 0-1

[Event "Late-Titled-Tuesday-Blitz-October-03-2023"]
[Site "Chess.com"]
[Date "2023.10.03"]
[Round "11"]
[White "luizzy"]
[Black "Aleksandar-Topalov"]
[Result "1/2-1/2"]
[WhiteElo "2576"]
[BlackElo "2431"]
[TimeControl "180+1"]
[EndTime "16:02:08 PDT"]
[Termination "Game drawn by repetition"]

1. b3 {[%clk 0:03:00.9]} 1... e6 {[%clk 0:02:55.3]} 2. Bb2 {[%clk 0:03:01.3]}
2... f5 {[%clk 0:02:55.6]} 3. e3 {[%clk 0:03:01.1]} 3... Nf6 {[%clk 0:02:55.9]}
4. g3 {[%clk 0:03:00.1]} 4... Be7 {[%clk 0:02:50.8]} 5. Bg2 {[%clk 0:03:00.3]}
5... O-O {[%clk 0:02:50.8]} 6. Ne2 {[%clk 0:02:56.2]} 6... d6 {[%clk 0:02:44.2]}
7. O-O {[%clk 0:02:54.3]} 7... e5 {[%clk 0:02:44.2]} 8. d3 {[%clk 0:02:44.2]}
8... Nc6 {[%clk 0:02:44.2]} 9. c4 {[%clk 0:02:43.9]} 9... Qe8 {[%clk 0:02:36.5]}
10. Nbc3 {[%clk 0:02:43.1]} 10... Qh5 {[%clk 0:02:34.3]} 11. Nd5 {[%clk
0:02:38.7]} 11... Bd8 {[%clk 0:02:30.5]} 12. Nec3 {[%clk 0:02:29.8]} 12... Qh6
{[%clk 0:02:23.5]} 13. b4 {[%clk 0:02:25.9]} 13... Nxd5 {[%clk 0:02:15]} 14.
Nxd5 {[%clk 0:02:22.3]} 14... Ne7 {[%clk 0:02:02.3]} 15. c5 {[%clk 0:02:17.1]}
15... Nxd5 {[%clk 0:01:54]} 16. Bxd5+ {[%clk 0:02:18]} 16... Kh8 {[%clk
0:01:53]} 17. cxd6 {[%clk 0:02:06.9]} 17... cxd6 {[%clk 0:01:53.1]} 18. f4
{[%clk 0:01:51.5]} 18... Bb6 {[%clk 0:01:52.7]} 19. d4 {[%clk 0:01:43.2]} 19...
Be6 {[%clk 0:01:38.4]} 20. Bxb7 {[%clk 0:01:41.7]} 20... Rab8 {[%clk 0:01:38.6]}
21. Bg2 {[%clk 0:01:41]} 21... Rfc8 {[%clk 0:01:32.5]} 22. Kh1 {[%clk 0:01:21]}
22... Bc4 {[%clk 0:01:24.6]} 23. Re1 {[%clk 0:01:16.6]} 23... e4 {[%clk
0:01:19.7]} 24. a4 {[%clk 0:01:12.7]} 24... a5 {[%clk 0:01:11.5]} 25. b5 {[%clk
0:01:12.2]} 25... Qe6 {[%clk 0:01:11]} 26. Qd2 {[%clk 0:01:10.9]} 26... Bd3
{[%clk 0:01:07.1]} 27. Rec1 {[%clk 0:01:03.1]} 27... Qb3 {[%clk 0:01:02.4]} 28.
Bh3 {[%clk 0:00:54.9]} 28... Qd5 {[%clk 0:00:50.5]} 29. Rxc8+ {[%clk 0:00:50.5]}
29... Rxc8 {[%clk 0:00:49.5]} 30. Rc1 {[%clk 0:00:51.4]} 30... Rc4 {[%clk
0:00:47.7]} 31. Rxc4 {[%clk 0:00:50.1]} 31... Bxc4 {[%clk 0:00:48]} 32. Bc3
{[%clk 0:00:45.2]} 32... Bd3 {[%clk 0:00:22.8]} 33. Bxa5 {[%clk 0:00:37.4]}
33... Qb3 {[%clk 0:00:20.9]} 34. Kg2 {[%clk 0:00:14]} 34... Bxa5 {[%clk
0:00:17.8]} 35. Qxa5 {[%clk 0:00:10.4]} 35... Qc2+ {[%clk 0:00:17.8]} 36. Kg1
{[%clk 0:00:09.8]} 36... Qc1+ {[%clk 0:00:16.6]} 37. Kf2 {[%clk 0:00:08.6]}
37... Qc2+ {[%clk 0:00:16]} 38. Kg1 {[%clk 0:00:09]} 38... Qd1+ {[%clk
0:00:14.7]} 39. Kf2 {[%clk 0:00:06.6]} 39... Qe2+ {[%clk 0:00:14.9]} 40. Kg1
{[%clk 0:00:06.5]} 40... Qxe3+ {[%clk 0:00:14.2]} 41. Kg2 {[%clk 0:00:06]} 41...
Qe2+ {[%clk 0:00:14]} 42. Kg1 {[%clk 0:00:05.9]} 42... Qe3+ {[%clk 0:00:14]} 43.
Kg2 {[%clk 0:00:06.3]} 43... Qe2+ {[%clk 0:00:13.2]} 44. Kg1 {[%clk 0:00:06.9]}
44... Qe3+ {[%clk 0:00:12.6]} 1/2-1/2

[Event "Late-Titled-Tuesday-Blitz-October-03-2023"]
[Site "Chess.com"]
[Date "2023.10.03"]
[Round "11"]
[White "Ali_rastbod"]
[Black "Anton_Demchenko"]
[Result "0-1"]
[WhiteElo "2716"]
[BlackElo "2914"]
[TimeControl "180+1"]
[EndTime "16:02:10 PDT"]
[Termination "Anton_Demchenko won on time"]

1. e4 {[%clk 0:03:00.9]} 1... e5 {[%clk 0:02:56.9]} 2. Nf3 {[%clk 0:02:57.9]}
2... Nc6 {[%clk 0:02:57]} 3. Nc3 {[%clk 0:02:58.5]} 3... Nf6 {[%clk 0:02:56.5]}
4. h3 {[%clk 0:02:58.7]} 4... g6 {[%clk 0:02:53.2]} 5. Bc4 {[%clk 0:02:52.9]}
5... Bg7 {[%clk 0:02:53.1]} 6. O-O {[%clk 0:02:53.5]} 6... d6 {[%clk 0:02:53.7]}
7. d3 {[%clk 0:02:53]} 7... Be6 {[%clk 0:02:52.7]} 8. a4 {[%clk 0:02:50.4]} 8...
Qd7 {[%clk 0:02:48]} 9. Ng5 {[%clk 0:02:46]} 9... Bxc4 {[%clk 0:02:41.9]} 10.
dxc4 {[%clk 0:02:46.9]} 10... h6 {[%clk 0:02:31.6]} 11. Nf3 {[%clk 0:02:46.8]}
11... g5 {[%clk 0:02:32.4]} 12. Nh2 {[%clk 0:02:25.4]} 12... a5 {[%clk
0:02:27.9]} 13. Be3 {[%clk 0:02:23.3]} 13... b6 {[%clk 0:02:27.7]} 14. Ng4
{[%clk 0:02:16.5]} 14... Nh5 {[%clk 0:01:37.7]} 15. Nxe5 {[%clk 0:02:11.5]}
15... Bxe5 {[%clk 0:01:30.2]} 16. Qxh5 {[%clk 0:02:11.4]} 16... Bxc3 {[%clk
0:01:30.8]} 17. bxc3 {[%clk 0:02:11.1]} 17... Rg8 {[%clk 0:01:11.4]} 18. Qxh6
{[%clk 0:02:07.4]} 18... g4 {[%clk 0:01:04.7]} 19. h4 {[%clk 0:02:03]} 19...
O-O-O {[%clk 0:01:04.1]} 20. Qf6 {[%clk 0:01:56.7]} 20... Ne5 {[%clk 0:01:01.2]}
21. Qf5 {[%clk 0:01:47.7]} 21... Nxc4 {[%clk 0:00:37.7]} 22. Bd4 {[%clk
0:01:46.8]} 22... Qe6 {[%clk 0:00:31.2]} 23. Rfe1 {[%clk 0:01:36.3]} 23... Rde8
{[%clk 0:00:30.5]} 24. h5 {[%clk 0:01:27.1]} 24... Ne5 {[%clk 0:00:27.2]} 25.
Bxe5 {[%clk 0:00:33.9]} 25... dxe5 {[%clk 0:00:27.3]} 26. Rad1 {[%clk
0:00:33.1]} 26... Rh8 {[%clk 0:00:23]} 27. Qxe6+ {[%clk 0:00:17.5]} 27... Rxe6
{[%clk 0:00:22.8]} 28. Kf1 {[%clk 0:00:17]} 28... Rxh5 {[%clk 0:00:22.9]} 29.
Ke2 {[%clk 0:00:17.5]} 29... Rh2 {[%clk 0:00:22.9]} 30. Rg1 {[%clk 0:00:15.9]}
30... Rc6 {[%clk 0:00:22.2]} 31. Kd3 {[%clk 0:00:15.5]} 31... Rhh6 {[%clk
0:00:21.1]} 32. Rh1 {[%clk 0:00:05.4]} 32... Rhf6 {[%clk 0:00:19.2]} 33. Rh8+
{[%clk 0:00:04.4]} 33... Kb7 {[%clk 0:00:19.1]} 34. Ke2 {[%clk 0:00:04.2]} 34...
Rxc3 {[%clk 0:00:18.4]} 35. Rd2 {[%clk 0:00:04.9]} 35... Rc4 {[%clk 0:00:16]}
36. f3 {[%clk 0:00:05.5]} 36... gxf3+ {[%clk 0:00:15.6]} 37. gxf3 {[%clk
0:00:06.4]} 37... Rxa4 {[%clk 0:00:16]} 38. Rdd8 {[%clk 0:00:06.5]} 38... Rc4
{[%clk 0:00:16]} 39. Kd3 {[%clk 0:00:05.6]} 39... Rfc6 {[%clk 0:00:15.6]} 40.
Rb8+ {[%clk 0:00:04.1]} 40... Ka6 {[%clk 0:00:15.6]} 41. Ra8+ {[%clk 0:00:04.8]}
41... Kb5 {[%clk 0:00:16.1]} 42. Rh2 {[%clk 0:00:04.9]} 42... Rc3+ {[%clk
0:00:16.2]} 0-1

[Event "Late-Titled-Tuesday-Blitz-October-03-2023"]
[Site "Chess.com"]
[Date "2023.10.03"]
[Round "11"]
[White "Hikaru"]
[Black "Jospem"]
[Result "1-0"]
[WhiteElo "3264"]
[BlackElo "3055"]
[TimeControl "180+1"]
[EndTime "16:02:21 PDT"]
[Termination "Hikaru won on time"]

1. e4 {[%clk 0:03:00.9]} 1... e5 {[%clk 0:03:00]} 2. Bc4 {[%clk 0:03:00.2]} 2...
Nf6 {[%clk 0:02:59.3]} 3. d3 {[%clk 0:03:00.6]} 3... Be7 {[%clk 0:02:57.8]} 4.
Bb3 {[%clk 0:02:55.2]} 4... Nc6 {[%clk 0:02:52.3]} 5. c3 {[%clk 0:02:50.1]} 5...
O-O {[%clk 0:02:47.9]} 6. Nf3 {[%clk 0:02:50.3]} 6... d6 {[%clk 0:02:48.3]} 7.
h3 {[%clk 0:02:49.1]} 7... Be6 {[%clk 0:02:43.1]} 8. Bc2 {[%clk 0:02:44.1]} 8...
h6 {[%clk 0:02:42.7]} 9. Nbd2 {[%clk 0:02:43.6]} 9... Re8 {[%clk 0:02:41.3]} 10.
g4 {[%clk 0:02:40.9]} 10... d5 {[%clk 0:02:32.6]} 11. g5 {[%clk 0:02:34.9]}
11... hxg5 {[%clk 0:02:32]} 12. Nxg5 {[%clk 0:02:35.8]} 12... dxe4 {[%clk
0:02:01.6]} 13. dxe4 {[%clk 0:02:24.9]} 13... Bf8 {[%clk 0:01:39.5]} 14. Nxe6
{[%clk 0:02:19.3]} 14... Rxe6 {[%clk 0:01:31.8]} 15. Qe2 {[%clk 0:02:17.1]}
15... Qe8 {[%clk 0:01:18]} 16. Nf3 {[%clk 0:02:15.2]} 16... Rd6 {[%clk
0:01:09.7]} 17. Bd2 {[%clk 0:01:57.9]} 17... Rad8 {[%clk 0:01:08.9]} 18. O-O-O
{[%clk 0:01:58.1]} 18... g6 {[%clk 0:01:06.1]} 19. Kb1 {[%clk 0:01:55.6]} 19...
Bg7 {[%clk 0:00:56.8]} 20. Rdg1 {[%clk 0:01:54.7]} 20... Na5 {[%clk 0:00:45.7]}
21. Bg5 {[%clk 0:01:53.4]} 21... Qe6 {[%clk 0:00:43.4]} 22. h4 {[%clk
0:01:48.3]} 22... Nc4 {[%clk 0:00:43.5]} 23. h5 {[%clk 0:01:39]} 23... Nxh5
{[%clk 0:00:43.4]} 24. Rxh5 {[%clk 0:01:09.5]} 24... gxh5 {[%clk 0:00:44.3]} 25.
Bxd8 {[%clk 0:01:09.7]} 25... Rxd8 {[%clk 0:00:34.4]} 26. Nh4 {[%clk 0:01:03.7]}
26... Nd2+ {[%clk 0:00:09]} 27. Ka1 {[%clk 0:01:02.5]} 27... Kf8 {[%clk
0:00:07.9]} 28. Nf5 {[%clk 0:00:55.7]} 28... Rd6 {[%clk 0:00:06]} 29. Nxd6
{[%clk 0:00:46.8]} 29... Qxd6 {[%clk 0:00:05.9]} 30. Qxh5 {[%clk 0:00:42.8]}
30... Qf6 {[%clk 0:00:03.2]} 31. Qe2 {[%clk 0:00:37.3]} 31... Bh6 {[%clk
0:00:03.4]} 32. Rd1 {[%clk 0:00:35.9]} 32... Qf4 {[%clk 0:00:03.7]} 33. a4
{[%clk 0:00:31.2]} 33... a6 {[%clk 0:00:03.2]} 34. Qd3 {[%clk 0:00:27.3]} 34...
Ke7 {[%clk 0:00:02.5]} 35. Qd5 {[%clk 0:00:25.6]} 35... c6 {[%clk 0:00:03.1]}
36. Qc5+ {[%clk 0:00:26.1]} 36... Kd7 {[%clk 0:00:03.6]} 37. Rh1 {[%clk
0:00:16.2]} 37... Kc7 {[%clk 0:00:01.9]} 38. Qe7+ {[%clk 0:00:15.9]} 38... Kb6
{[%clk 0:00:02.4]} 39. a5+ {[%clk 0:00:15.5]} 39... Ka7 {[%clk 0:00:02.9]} 40.
Qc5+ {[%clk 0:00:15.8]} 40... Kb8 {[%clk 0:00:03.2]} 41. Qd6+ {[%clk 0:00:16.2]}
41... Ka7 {[%clk 0:00:03.7]} 42. Qxh6 {[%clk 0:00:15.8]} 42... Qxf2 {[%clk
0:00:04]} 43. Qh2 {[%clk 0:00:14.5]} 43... Qe3 {[%clk 0:00:03.7]} 44. Qg1 {[%clk
0:00:14.7]} 44... Qxg1+ {[%clk 0:00:03.3]} 45. Rxg1 {[%clk 0:00:15.6]} 45... Nc4
{[%clk 0:00:03.8]} 46. b4 {[%clk 0:00:15.2]} 46... Nd6 {[%clk 0:00:04.7]} 47.
Rd1 {[%clk 0:00:14.5]} 47... Nb5 {[%clk 0:00:04.7]} 48. Kb2 {[%clk 0:00:14.3]}
48... Kb8 {[%clk 0:00:05.3]} 49. Rd7 {[%clk 0:00:12.6]} 49... f6 {[%clk
0:00:06]} 50. Rf7 {[%clk 0:00:12.5]} 50... Nd6 {[%clk 0:00:06.4]} 51. Rxf6
{[%clk 0:00:13]} 51... Nc4+ {[%clk 0:00:06.8]} 52. Kc1 {[%clk 0:00:13.6]} 52...
Kc7 {[%clk 0:00:06.5]} 53. Bd3 {[%clk 0:00:13.4]} 53... Nd6 {[%clk 0:00:06.7]}
54. c4 {[%clk 0:00:13.8]} 1-0